[Event "Late-Titled-Tuesday-Blitz-February-06-2024"]
[Site "Chess.com"]
[Date "2024.02.06"]
[Round "7"]
[White "rezamahdavi2008"]
[Black "MolecularChemist"]
[Result "0-1"]
[WhiteElo "2842"]
[BlackElo "2962"]
[TimeControl "180+1"]
[EndTime "15:18:27 PST"]
[Termination "MolecularChemist won on time"]

1. e4 {[%clk 0:03:00.9]} 1... e5 {[%clk 0:02:58]} 2. Nf3 {[%clk 0:03:00.6]} 2...
Nc6 {[%clk 0:02:50.3]} 3. Bc4 {[%clk 0:02:55.9]} 3... Nf6 {[%clk 0:02:49.1]} 4.
d3 {[%clk 0:02:49.2]} 4... Bc5 {[%clk 0:02:48.4]} 5. Nc3 {[%clk 0:02:48.2]} 5...
h6 {[%clk 0:02:45.8]} 6. Be3 {[%clk 0:02:48.3]} 6... d6 {[%clk 0:02:45.1]} 7.
Nd5 {[%clk 0:02:45]} 7... O-O {[%clk 0:02:42]} 8. c3 {[%clk 0:02:42.4]} 8...
Bxe3 {[%clk 0:02:40.1]} 9. fxe3 {[%clk 0:02:39.6]} 9... Nxd5 {[%clk 0:02:39.7]}
10. Bxd5 {[%clk 0:02:37.7]} 10... Be6 {[%clk 0:02:22.1]} 11. Bxe6 {[%clk
0:02:14.3]} 11... fxe6 {[%clk 0:02:23]} 12. Qb3 {[%clk 0:02:11.3]} 12... Qd7
{[%clk 0:02:06.1]} 13. O-O {[%clk 0:02:10.2]} 13... Kh7 {[%clk 0:01:47.4]} 14.
Rf2 {[%clk 0:01:58.5]} 14... Na5 {[%clk 0:01:23.1]} 15. Qa3 {[%clk 0:01:41.6]}
15... Nc6 {[%clk 0:01:17.5]} 16. Qb3 {[%clk 0:01:37.6]} 16... Na5 {[%clk
0:01:15.1]} 17. Qb4 {[%clk 0:01:37.8]} 17... b6 {[%clk 0:00:55.4]} 18. Raf1
{[%clk 0:01:35.1]} 18... Rf6 {[%clk 0:00:50.5]} 19. c4 {[%clk 0:01:11.2]} 19...
c5 {[%clk 0:00:48.7]} 20. Qd2 {[%clk 0:01:06.1]} 20... Raf8 {[%clk 0:00:49.1]}
21. b4 {[%clk 0:01:02]} 21... Nc6 {[%clk 0:00:48.6]} 22. b5 {[%clk 0:01:01.5]}
22... Ne7 {[%clk 0:00:47.4]} 23. d4 {[%clk 0:00:57.5]} 23... exd4 {[%clk
0:00:44.3]} 24. exd4 {[%clk 0:00:58.4]} 24... cxd4 {[%clk 0:00:37.6]} 25. Qxd4
{[%clk 0:00:58.7]} 25... Qc7 {[%clk 0:00:28.3]} 26. e5 {[%clk 0:00:56.3]} 26...
dxe5 {[%clk 0:00:27.8]} 27. Nxe5 {[%clk 0:00:39.1]} 27... Rxf2 {[%clk
0:00:27.7]} 28. Rxf2 {[%clk 0:00:40]} 28... Rxf2 {[%clk 0:00:28]} 29. Kxf2
{[%clk 0:00:40.9]} 29... Nf5 {[%clk 0:00:28.1]} 30. Qe4 {[%clk 0:00:39.5]} 30...
Qc5+ {[%clk 0:00:28.7]} 31. Kf3 {[%clk 0:00:36]} 31... Qa3+ {[%clk 0:00:28.2]}
32. Nd3 {[%clk 0:00:30.8]} 32... Kh8 {[%clk 0:00:25.7]} 33. Qa8+ {[%clk
0:00:28.1]} 33... Kh7 {[%clk 0:00:26.1]} 34. Qe4 {[%clk 0:00:28.8]} 34... h5
{[%clk 0:00:26.7]} 35. g4 {[%clk 0:00:22.1]} 35... hxg4+ {[%clk 0:00:26.3]} 36.
Kxg4 {[%clk 0:00:23]} 36... Qxa2 {[%clk 0:00:20.8]} 37. Qxe6 {[%clk 0:00:18.3]}
37... Nh6+ {[%clk 0:00:21.3]} 38. Kg3 {[%clk 0:00:12.5]} 38... Qd2 {[%clk
0:00:16.7]} 39. Qe4+ {[%clk 0:00:12.7]} 39... Kh8 {[%clk 0:00:17.2]} 40. Nf4
{[%clk 0:00:12.5]} 40... Qc3+ {[%clk 0:00:14.9]} 41. Kg2 {[%clk 0:00:11.3]}
41... Qb2+ {[%clk 0:00:13.8]} 42. Kg3 {[%clk 0:00:11.6]} 42... Qc3+ {[%clk
0:00:13.9]} 43. Kg2 {[%clk 0:00:10.9]} 43... Qb2+ {[%clk 0:00:14.2]} 44. Kh3
{[%clk 0:00:10.4]} 44... Qc3+ {[%clk 0:00:12.4]} 45. Kh4 {[%clk 0:00:08.6]}
45... Qf6+ {[%clk 0:00:09.6]} 46. Kh5 {[%clk 0:00:07.7]} 46... Qf7+ {[%clk
0:00:05.4]} 47. Ng6+ {[%clk 0:00:05.1]} 47... Kh7 {[%clk 0:00:05]} 48. Kg5
{[%clk 0:00:04.1]} 48... Qf6+ {[%clk 0:00:05.4]} 49. Kh5 {[%clk 0:00:04.2]}
49... Nf5 {[%clk 0:00:05.7]} 50. Qg4 {[%clk 0:00:01.8]} 50... Qf7 {[%clk
0:00:03.4]} 0-1

[Event "Late-Titled-Tuesday-Blitz-February-06-2024"]
[Site "Chess.com"]
[Date "2024.02.06"]
[Round "7"]
[White "szachmistrz2500"]
[Black "Karttunen"]
[Result "0-1"]
[WhiteElo "2498"]
[BlackElo "2642"]
[TimeControl "180+1"]
[EndTime "15:18:31 PST"]
[Termination "Karttunen won on time"]

1. d4 {[%clk 0:03:00.9]} 1... Nf6 {[%clk 0:02:59]} 2. c4 {[%clk 0:03:00.9]} 2...
e6 {[%clk 0:02:59]} 3. Nf3 {[%clk 0:02:59.8]} 3... d5 {[%clk 0:02:59.1]} 4. Nc3
{[%clk 0:02:59.4]} 4... Bb4 {[%clk 0:02:56.9]} 5. Bg5 {[%clk 0:02:58.1]} 5... h6
{[%clk 0:02:55.3]} 6. Bxf6 {[%clk 0:02:57.5]} 6... Qxf6 {[%clk 0:02:55.9]} 7. e3
{[%clk 0:02:57]} 7... c6 {[%clk 0:02:39.6]} 8. Bd3 {[%clk 0:02:53.9]} 8... Nd7
{[%clk 0:02:37.3]} 9. O-O {[%clk 0:02:53.3]} 9... O-O {[%clk 0:02:37.1]} 10. Qc2
{[%clk 0:02:47.4]} 10... dxc4 {[%clk 0:02:11.3]} 11. Bxc4 {[%clk 0:02:46.7]}
11... e5 {[%clk 0:02:09.4]} 12. d5 {[%clk 0:02:36.3]} 12... Nb6 {[%clk
0:01:55.4]} 13. Bb3 {[%clk 0:02:36.2]} 13... Bf5 {[%clk 0:01:51.6]} 14. e4
{[%clk 0:02:10.2]} 14... Bg4 {[%clk 0:01:51.5]} 15. Nd2 {[%clk 0:01:58.6]} 15...
Rac8 {[%clk 0:01:49.9]} 16. f3 {[%clk 0:01:50.5]} 16... Bd7 {[%clk 0:01:44.3]}
17. Qd3 {[%clk 0:01:47.5]} 17... Bc5+ {[%clk 0:01:41.3]} 18. Kh1 {[%clk
0:01:46.9]} 18... Bd4 {[%clk 0:01:41.4]} 19. Nc4 {[%clk 0:01:20.6]} 19... Nxc4
{[%clk 0:01:31.1]} 20. Bxc4 {[%clk 0:01:19.9]} 20... b5 {[%clk 0:01:17]} 21. Bb3
{[%clk 0:01:17.6]} 21... a6 {[%clk 0:00:51.8]} 22. dxc6 {[%clk 0:01:13.1]} 22...
Bxc6 {[%clk 0:00:51.9]} 23. Qd2 {[%clk 0:01:01.1]} 23... b4 {[%clk 0:00:38.6]}
24. Nd5 {[%clk 0:00:59.9]} 24... Qd6 {[%clk 0:00:38.7]} 25. Qxb4 {[%clk
0:00:50.6]} 25... Qxb4 {[%clk 0:00:33.4]} 26. Nxb4 {[%clk 0:00:50.7]} 26... Bb5
{[%clk 0:00:34]} 27. Rfd1 {[%clk 0:00:43.4]} 27... Bxb2 {[%clk 0:00:32.6]} 28.
Rab1 {[%clk 0:00:42.4]} 28... Bd4 {[%clk 0:00:32.6]} 29. Nd5 {[%clk 0:00:41]}
29... Kh8 {[%clk 0:00:32.5]} 30. a4 {[%clk 0:00:32.8]} 30... Bd7 {[%clk
0:00:26.2]} 31. a5 {[%clk 0:00:30.1]} 31... Rc5 {[%clk 0:00:23.6]} 32. Nb6
{[%clk 0:00:29.6]} 32... Bb5 {[%clk 0:00:22.9]} 33. Bd5 {[%clk 0:00:19.6]} 33...
g6 {[%clk 0:00:22.2]} 34. Rdc1 {[%clk 0:00:19.3]} 34... f5 {[%clk 0:00:20.5]}
35. Rxc5 {[%clk 0:00:18.1]} 35... Bxc5 {[%clk 0:00:21.4]} 36. Rc1 {[%clk
0:00:18.1]} 36... Bb4 {[%clk 0:00:21.7]} 37. Rc7 {[%clk 0:00:17.9]} 37... Bxa5
{[%clk 0:00:21.5]} 38. Rb7 {[%clk 0:00:17]} 38... Bxb6 {[%clk 0:00:21.2]} 39.
Rxb6 {[%clk 0:00:16.9]} 39... Kg7 {[%clk 0:00:19.8]} 40. h4 {[%clk 0:00:16.1]}
40... h5 {[%clk 0:00:14.9]} 41. Rb7+ {[%clk 0:00:13.7]} 41... Kh6 {[%clk
0:00:15]} 42. Ra7 {[%clk 0:00:13.4]} 42... f4 {[%clk 0:00:14.4]} 43. Kh2 {[%clk
0:00:13.1]} 43... Rf6 {[%clk 0:00:14.5]} 44. Bg8 {[%clk 0:00:12.8]} 44... g5
{[%clk 0:00:14.4]} 45. Rh7+ {[%clk 0:00:12.3]} 45... Kg6 {[%clk 0:00:14.6]} 46.
hxg5 {[%clk 0:00:11.8]} 46... Kxg5 {[%clk 0:00:14.7]} 47. Ra7 {[%clk 0:00:12.5]}
47... Rg6 {[%clk 0:00:14.3]} 48. Bd5 {[%clk 0:00:11.6]} 48... Kh6 {[%clk
0:00:13.5]} 49. Ra8 {[%clk 0:00:11]} 49... Rg5 {[%clk 0:00:12.7]} 50. Rh8+
{[%clk 0:00:10.7]} 50... Kg7 {[%clk 0:00:12.9]} 51. Ra8 {[%clk 0:00:10.5]} 51...
Kf6 {[%clk 0:00:13]} 52. Bb7 {[%clk 0:00:07.2]} 52... Bf1 {[%clk 0:00:12.8]} 53.
Bxa6 {[%clk 0:00:04]} 53... Bxg2 {[%clk 0:00:11.7]} 54. Be2 {[%clk 0:00:02.8]}
54... h4 {[%clk 0:00:11.1]} 55. Rf8+ {[%clk 0:00:02.4]} 55... Ke7 {[%clk
0:00:11.2]} 56. Rf5 {[%clk 0:00:01.4]} 56... Rxf5 {[%clk 0:00:11]} 57. exf5
{[%clk 0:00:01.7]} 57... h3 {[%clk 0:00:11.5]} 0-1

[Event "Late-Titled-Tuesday-Blitz-February-06-2024"]
[Site "Chess.com"]
[Date "2024.02.06"]
[Round "7"]
[White "IMSlavin"]
[Black "Korchmar_Vasiliy"]
[Result "0-1"]
[WhiteElo "2352"]
[BlackElo "2734"]
[TimeControl "180+1"]
[EndTime "15:18:36 PST"]
[Termination "Korchmar_Vasiliy won by resignation"]

1. e4 {[%clk 0:02:59.3]} 1... c5 {[%clk 0:03:00.3]} 2. g3 {[%clk 0:02:59.2]}
2... d5 {[%clk 0:02:53.6]} 3. exd5 {[%clk 0:02:59]} 3... Nf6 {[%clk 0:02:54.1]}
4. Qf3 {[%clk 0:02:59.9]} 4... Bg4 {[%clk 0:02:45.4]} 5. Qb3 {[%clk 0:02:58.8]}
5... g6 {[%clk 0:02:28]} 6. Bg2 {[%clk 0:02:54.6]} 6... Bg7 {[%clk 0:02:20.2]}
7. Nc3 {[%clk 0:02:54.2]} 7... O-O {[%clk 0:02:19.5]} 8. Qxb7 {[%clk 0:02:49.6]}
8... Nbd7 {[%clk 0:02:19]} 9. d3 {[%clk 0:02:38.3]} 9... Rb8 {[%clk 0:01:57.8]}
10. Qxa7 {[%clk 0:02:35.5]} 10... Nb6 {[%clk 0:01:58]} 11. Qa5 {[%clk
0:02:23.1]} 11... Nfxd5 {[%clk 0:01:38.5]} 12. Nxd5 {[%clk 0:02:20.4]} 12...
Nxd5 {[%clk 0:01:38.9]} 13. Qxd8 {[%clk 0:02:16.2]} 13... Rfxd8 {[%clk
0:01:39.8]} 14. c3 {[%clk 0:02:01.2]} 14... Nxc3 {[%clk 0:01:39.3]} 15. Bf3
{[%clk 0:01:34.8]} 15... Bxf3 {[%clk 0:01:34.7]} 16. Nxf3 {[%clk 0:01:34.9]}
16... Rxd3 {[%clk 0:01:35.4]} 17. Nd2 {[%clk 0:01:27.1]} 17... Na4 {[%clk
0:01:30.8]} 18. Rb1 {[%clk 0:01:21.3]} 18... Bxb2 {[%clk 0:01:24.2]} 19. Nc4
{[%clk 0:01:15.4]} 19... Bc3+ {[%clk 0:01:19.9]} 20. Ke2 {[%clk 0:01:14.2]}
20... Rxb1 {[%clk 0:01:18.8]} 21. Kxd3 {[%clk 0:01:14.5]} 21... Bd4 {[%clk
0:01:15.4]} 22. Kc2 {[%clk 0:00:58.3]} 22... Ra1 {[%clk 0:01:01.6]} 23. Kb3
{[%clk 0:00:56.7]} 23... Nc3 {[%clk 0:01:00.5]} 24. Re1 {[%clk 0:00:35.4]} 24...
Nxa2 {[%clk 0:00:53.4]} 25. Bd2 {[%clk 0:00:32.5]} 25... Rxe1 {[%clk 0:00:45.9]}
26. Bxe1 {[%clk 0:00:32.8]} 26... Nb4 {[%clk 0:00:46.6]} 27. Bxb4 {[%clk
0:00:28.6]} 27... cxb4 {[%clk 0:00:47.5]} 28. Kxb4 {[%clk 0:00:28.8]} 28... Bxf2
{[%clk 0:00:47.8]} 29. Kc3 {[%clk 0:00:28.2]} 29... g5 {[%clk 0:00:41.9]} 30.
Kd3 {[%clk 0:00:28.1]} 30... Kg7 {[%clk 0:00:38]} 31. g4 {[%clk 0:00:27.6]}
31... Ba7 {[%clk 0:00:30.6]} 32. Ke4 {[%clk 0:00:26.9]} 32... Bb8 {[%clk
0:00:28.3]} 33. h3 {[%clk 0:00:27]} 33... Kg6 {[%clk 0:00:26.1]} 34. Ne3 {[%clk
0:00:26.8]} 34... e6 {[%clk 0:00:25.1]} 35. Nc4 {[%clk 0:00:23.6]} 35... f5+
{[%clk 0:00:22.6]} 36. gxf5+ {[%clk 0:00:22.8]} 36... exf5+ {[%clk 0:00:23.5]}
37. Kf3 {[%clk 0:00:23.5]} 37... h5 {[%clk 0:00:20.6]} 38. Na5 {[%clk
0:00:18.5]} 38... g4+ {[%clk 0:00:19.8]} 39. hxg4 {[%clk 0:00:18.8]} 39... hxg4+
{[%clk 0:00:20]} 40. Kg2 {[%clk 0:00:19]} 40... f4 {[%clk 0:00:16.6]} 41. Nc6
{[%clk 0:00:19.9]} 41... Bd6 {[%clk 0:00:15]} 42. Nd4 {[%clk 0:00:19.7]} 42...
Kg5 {[%clk 0:00:10.5]} 43. Ne6+ {[%clk 0:00:18.4]} 43... Kh4 {[%clk 0:00:10.1]}
44. Nd4 {[%clk 0:00:16.6]} 44... Be5 {[%clk 0:00:07.7]} 45. Nf5+ {[%clk
0:00:10.1]} 45... Kg5 {[%clk 0:00:07.5]} 46. Ne7 {[%clk 0:00:11]} 46... f3+
{[%clk 0:00:07.6]} 47. Kf2 {[%clk 0:00:11.5]} 47... Bd4+ {[%clk 0:00:07]} 48.
Kg3 {[%clk 0:00:10.5]} 48... Be5+ {[%clk 0:00:07.2]} 49. Kf2 {[%clk 0:00:10.5]}
49... Kf4 {[%clk 0:00:06.6]} 50. Ng6+ {[%clk 0:00:10.2]} 50... Ke4 {[%clk
0:00:06.1]} 51. Nxe5 {[%clk 0:00:05.1]} 51... Kxe5 {[%clk 0:00:05.9]} 0-1

[Event "Late-Titled-Tuesday-Blitz-February-06-2024"]
[Site "Chess.com"]
[Date "2024.02.06"]
[Round "7"]
[White "rasmussvane"]
[Black "traviscottofficial"]
[Result "1-0"]
[WhiteElo "2956"]
[BlackElo "2676"]
[TimeControl "180+1"]
[EndTime "15:18:38 PST"]
[Termination "rasmussvane won by checkmate"]

1. Nf3 {[%clk 0:02:54.2]} 1... Nf6 {[%clk 0:02:59.4]} 2. g3 {[%clk 0:02:54.3]}
2... g6 {[%clk 0:02:59.5]} 3. Bg2 {[%clk 0:02:54.5]} 3... Bg7 {[%clk 0:03:00.2]}
4. O-O {[%clk 0:02:52.5]} 4... O-O {[%clk 0:03:00.7]} 5. d4 {[%clk 0:02:52.1]}
5... d6 {[%clk 0:03:00]} 6. Re1 {[%clk 0:02:52.1]} 6... c5 {[%clk 0:02:57]} 7.
dxc5 {[%clk 0:02:51.4]} 7... dxc5 {[%clk 0:02:57.1]} 8. c3 {[%clk 0:02:52]} 8...
Nc6 {[%clk 0:02:55.2]} 9. Qxd8 {[%clk 0:02:50.7]} 9... Rxd8 {[%clk 0:02:54.6]}
10. Be3 {[%clk 0:02:51.6]} 10... c4 {[%clk 0:02:02.1]} 11. Na3 {[%clk
0:02:49.7]} 11... Ng4 {[%clk 0:01:59.5]} 12. Nxc4 {[%clk 0:02:19.6]} 12... Be6
{[%clk 0:01:58.2]} 13. Ncd2 {[%clk 0:02:19.6]} 13... Nxe3 {[%clk 0:01:56.4]} 14.
fxe3 {[%clk 0:02:20.5]} 14... Ne5 {[%clk 0:01:50.1]} 15. Nd4 {[%clk 0:02:03.3]}
15... Ng4 {[%clk 0:01:44.5]} 16. Nf1 {[%clk 0:01:48.7]} 16... Bd5 {[%clk
0:01:38.9]} 17. Red1 {[%clk 0:01:40.5]} 17... Bh6 {[%clk 0:01:18.8]} 18. Nc2
{[%clk 0:01:08.1]} 18... Bc4 {[%clk 0:00:50.9]} 19. Bf3 {[%clk 0:01:03.1]} 19...
Ne5 {[%clk 0:00:47.4]} 20. Kf2 {[%clk 0:01:02.8]} 20... Nxf3 {[%clk 0:00:41.2]}
21. exf3 {[%clk 0:01:03]} 21... Rxd1 {[%clk 0:00:38.1]} 22. Rxd1 {[%clk
0:01:02.1]} 22... Bxa2 {[%clk 0:00:38.2]} 23. Rd7 {[%clk 0:01:02.1]} 23... Rb8
{[%clk 0:00:27.9]} 24. Rxe7 {[%clk 0:01:01]} 24... Be6 {[%clk 0:00:27.2]} 25.
Nd4 {[%clk 0:00:40.1]} 25... Bf8 {[%clk 0:00:23.1]} 26. Rc7 {[%clk 0:00:40.3]}
26... Bd6 {[%clk 0:00:19]} 27. Nxe6 {[%clk 0:00:39.8]} 27... Bxc7 {[%clk
0:00:19.3]} 28. Nxc7 {[%clk 0:00:39.6]} 28... Rd8 {[%clk 0:00:18.7]} 29. Nb5
{[%clk 0:00:29.8]} 29... Rd1 {[%clk 0:00:18.7]} 30. Ke2 {[%clk 0:00:11.6]} 30...
Rb1 {[%clk 0:00:18]} 31. b4 {[%clk 0:00:11.9]} 31... a6 {[%clk 0:00:16.3]} 32.
Nd4 {[%clk 0:00:10.3]} 32... b6 {[%clk 0:00:15.6]} 33. h4 {[%clk 0:00:10.5]}
33... a5 {[%clk 0:00:15.9]} 34. Nd2 {[%clk 0:00:09.6]} 34... Rb2 {[%clk
0:00:15.5]} 35. bxa5 {[%clk 0:00:09.1]} 35... bxa5 {[%clk 0:00:16.4]} 36. Kd3
{[%clk 0:00:09.5]} 36... a4 {[%clk 0:00:16.7]} 37. Nc2 {[%clk 0:00:10]} 37...
Kg7 {[%clk 0:00:14.8]} 38. c4 {[%clk 0:00:10.4]} 38... Kf6 {[%clk 0:00:14.2]}
39. Kc3 {[%clk 0:00:10.9]} 39... Rb8 {[%clk 0:00:13.1]} 40. Ne4+ {[%clk
0:00:11.5]} 40... Ke5 {[%clk 0:00:13.1]} 41. Nc5 {[%clk 0:00:12.4]} 41... Rb1
{[%clk 0:00:08.5]} 42. Nxa4 {[%clk 0:00:12.2]} 42... Rg1 {[%clk 0:00:08.4]} 43.
g4 {[%clk 0:00:09.6]} 43... Rh1 {[%clk 0:00:08.4]} 44. Nc5 {[%clk 0:00:06.5]}
44... Rxh4 {[%clk 0:00:08.8]} 45. Nd3+ {[%clk 0:00:06.9]} 45... Kd6 {[%clk
0:00:09.2]} 46. c5+ {[%clk 0:00:07]} 46... Kc7 {[%clk 0:00:09.3]} 47. Ncb4
{[%clk 0:00:06.7]} 47... Rh3 {[%clk 0:00:09.2]} 48. Nd5+ {[%clk 0:00:04.6]}
48... Kc6 {[%clk 0:00:09.5]} 49. Kd4 {[%clk 0:00:05.3]} 49... h5 {[%clk
0:00:04.9]} 50. gxh5 {[%clk 0:00:04.8]} 50... gxh5 {[%clk 0:00:04.8]} 51. Ne5+
{[%clk 0:00:05.5]} 51... Kb7 {[%clk 0:00:05.1]} 52. c6+ {[%clk 0:00:06]} 52...
Kc8 {[%clk 0:00:05.2]} 53. Nxf7 {[%clk 0:00:05.5]} 53... Rxf3 {[%clk 0:00:05.4]}
54. Nd6+ {[%clk 0:00:06]} 54... Kd8 {[%clk 0:00:03.8]} 55. c7+ {[%clk
0:00:06.5]} 55... Kd7 {[%clk 0:00:03.8]} 56. c8=Q+ {[%clk 0:00:07]} 56... Kxd6
{[%clk 0:00:04.3]} 57. Qc7+ {[%clk 0:00:07.5]} 57... Ke6 {[%clk 0:00:04.6]} 58.
Qe7+ {[%clk 0:00:07.5]} 58... Kf5 {[%clk 0:00:05]} 59. Qf6+ {[%clk 0:00:06.2]}
59... Kg4 {[%clk 0:00:05.4]} 60. Qg6+ {[%clk 0:00:06.7]} 60... Kh4 {[%clk
0:00:05.5]} 61. Nf4 {[%clk 0:00:07.1]} 61... Rg3 {[%clk 0:00:05.7]} 62. Qxh5#
{[%clk 0:00:07.2]} 1-0

[Event "Late-Titled-Tuesday-Blitz-February-06-2024"]
[Site "Chess.com"]
[Date "2024.02.06"]
[Round "7"]
[White "mr_gustavo"]
[Black "Mikayel99"]
[Result "1-0"]
[WhiteElo "2699"]
[BlackElo "2534"]
[TimeControl "180+1"]
[EndTime "15:18:40 PST"]
[Termination "mr_gustavo won by resignation"]

1. b3 {[%clk 0:03:00.9]} 1... d5 {[%clk 0:02:59.2]} 2. Bb2 {[%clk 0:03:00.7]}
2... Bf5 {[%clk 0:02:59.8]} 3. f3 {[%clk 0:02:59]} 3... c5 {[%clk 0:02:58.2]} 4.
e4 {[%clk 0:02:48.8]} 4... dxe4 {[%clk 0:02:57.2]} 5. fxe4 {[%clk 0:02:49.7]}
5... Bxe4 {[%clk 0:02:55.5]} 6. Nc3 {[%clk 0:02:50.2]} 6... Bg6 {[%clk
0:02:55.2]} 7. Nf3 {[%clk 0:02:50.1]} 7... Nf6 {[%clk 0:02:54.8]} 8. Bb5+ {[%clk
0:02:49.6]} 8... Nbd7 {[%clk 0:02:54.9]} 9. Qe2 {[%clk 0:02:49.3]} 9... a6
{[%clk 0:02:51.7]} 10. Bxd7+ {[%clk 0:02:45.3]} 10... Qxd7 {[%clk 0:02:49.8]}
11. O-O-O {[%clk 0:02:46.2]} 11... e6 {[%clk 0:02:48.9]} 12. d4 {[%clk
0:02:36.5]} 12... c4 {[%clk 0:02:38.2]} 13. d5 {[%clk 0:02:22.3]} 13... O-O-O
{[%clk 0:02:26.4]} 14. Qxc4+ {[%clk 0:02:16.3]} 14... Qc7 {[%clk 0:02:22.6]} 15.
Qxc7+ {[%clk 0:02:16]} 15... Kxc7 {[%clk 0:02:23.5]} 16. dxe6 {[%clk 0:02:16.2]}
16... Rxd1+ {[%clk 0:02:21.1]} 17. Rxd1 {[%clk 0:02:15.5]} 17... fxe6 {[%clk
0:02:21.9]} 18. Ne5 {[%clk 0:02:13.7]} 18... Bd6 {[%clk 0:02:20]} 19. Nxg6
{[%clk 0:02:13.1]} 19... hxg6 {[%clk 0:02:20.5]} 20. h3 {[%clk 0:02:14]} 20...
Rd8 {[%clk 0:02:15.2]} 21. Ne2 {[%clk 0:02:09.5]} 21... Nh5 {[%clk 0:02:09.7]}
22. Kb1 {[%clk 0:02:06.8]} 22... Nf4 {[%clk 0:01:49.6]} 23. Rxd6 {[%clk
0:01:59.1]} 23... Nxe2 {[%clk 0:01:49.1]} 24. Rxd8 {[%clk 0:01:56.3]} 24... Kxd8
{[%clk 0:01:50]} 25. Be5 {[%clk 0:01:50.1]} 25... b5 {[%clk 0:01:41.4]} 26. c3
{[%clk 0:01:42.3]} 26... Kd7 {[%clk 0:01:39.9]} 27. Kc2 {[%clk 0:01:41.3]} 27...
Kc6 {[%clk 0:01:40.6]} 28. Kd3 {[%clk 0:01:40.2]} 28... Nc1+ {[%clk 0:01:40.9]}
29. Kc2 {[%clk 0:01:38.2]} 29... Kd5 {[%clk 0:01:33.8]} 30. Bh2 {[%clk
0:01:24.7]} 30... Nxa2 {[%clk 0:01:19.9]} 31. Kb2 {[%clk 0:01:21.9]} 31... Nxc3
{[%clk 0:01:19.2]} 32. Kxc3 {[%clk 0:01:21.7]} 32... a5 {[%clk 0:01:19.8]} 33.
Bc7 {[%clk 0:00:50.7]} 33... a4 {[%clk 0:01:19.8]} 34. bxa4 {[%clk 0:00:51.6]}
34... bxa4 {[%clk 0:01:20.7]} 35. Kb4 {[%clk 0:00:52]} 35... e5 {[%clk
0:01:12.7]} 36. Kxa4 {[%clk 0:00:51.7]} 36... Kd4 {[%clk 0:01:05.8]} 37. Kb3
{[%clk 0:00:51.7]} 37... e4 {[%clk 0:01:06.4]} 38. Kc2 {[%clk 0:00:51.6]} 38...
Ke3 {[%clk 0:01:06.8]} 39. g4 {[%clk 0:00:35.9]} 39... Kf3 {[%clk 0:00:56.1]}
40. g5 {[%clk 0:00:25.4]} 40... Kf2 {[%clk 0:00:34.6]} 41. Kd1 {[%clk
0:00:21.1]} 41... e3 {[%clk 0:00:29.6]} 42. Bb6 {[%clk 0:00:20.4]} 42... Kf3
{[%clk 0:00:20.6]} 43. Ke1 {[%clk 0:00:20]} 43... Kg3 {[%clk 0:00:18.9]} 44. Ke2
{[%clk 0:00:19.2]} 44... Kxh3 {[%clk 0:00:19.3]} 45. Bxe3 {[%clk 0:00:16.6]}
45... Kg4 {[%clk 0:00:19.8]} 46. Bc1 {[%clk 0:00:16.9]} 46... Kf5 {[%clk
0:00:20.1]} 47. Kd3 {[%clk 0:00:17.8]} 47... Ke6 {[%clk 0:00:19.9]} 48. Ke4
{[%clk 0:00:17.9]} 48... Kd6 {[%clk 0:00:19.3]} 49. Kd4 {[%clk 0:00:14.5]} 49...
Ke6 {[%clk 0:00:19]} 50. Kc5 {[%clk 0:00:14.7]} 50... Ke5 {[%clk 0:00:16.5]} 51.
Bd2 {[%clk 0:00:14.1]} 51... Ke6 {[%clk 0:00:15.6]} 52. Kc6 {[%clk 0:00:14.6]}
52... Ke7 {[%clk 0:00:12.6]} 53. Kc7 {[%clk 0:00:14.6]} 53... Ke6 {[%clk
0:00:08.6]} 54. Kd8 {[%clk 0:00:14.6]} 54... Kf7 {[%clk 0:00:08.7]} 55. Kd7
{[%clk 0:00:15.1]} 55... Kf8 {[%clk 0:00:09]} 56. Ke6 {[%clk 0:00:14.1]} 56...
Kg8 {[%clk 0:00:06.4]} 57. Ke7 {[%clk 0:00:14.1]} 57... Kh8 {[%clk 0:00:03.8]}
58. Kf7 {[%clk 0:00:13.3]} 58... Kh7 {[%clk 0:00:04]} 59. Bc1 {[%clk 0:00:13.4]}
59... Kh8 {[%clk 0:00:04.3]} 60. Kxg6 {[%clk 0:00:13.4]} 60... Kg8 {[%clk
0:00:04.7]} 61. Bb2 {[%clk 0:00:13.2]} 61... Kf8 {[%clk 0:00:04.4]} 62. Bxg7+
{[%clk 0:00:13.7]} 62... Kg8 {[%clk 0:00:05.1]} 63. Bf6 {[%clk 0:00:13.7]} 63...
Kf8 {[%clk 0:00:05.6]} 64. Kh7 {[%clk 0:00:13.4]} 64... Kf7 {[%clk 0:00:06.3]}
65. Bb2 {[%clk 0:00:13.7]} 65... Ke6 {[%clk 0:00:06.2]} 66. g6 {[%clk
0:00:14.3]} 66... Kd5 {[%clk 0:00:07.1]} 67. g7 {[%clk 0:00:14.6]} 1-0